lending/lending_fUSD_20250418
["ID","MTS","AMOUNT","RATE_DAILY","PERIOD"]
[358324553,1744935079734,-602396.33397735,0.00081,120]
[358324554,1744935079743,-12067.03,0.00081,60]
[358324555,1744935079753,-1523.334,0.00081,120]
[358324556,1744935079763,-151.0,0.00081,120]
[358324557,1744935079775,-151.0,0.00081,120]
[358324558,1744935079784,-157.442389,0.00081,120]
[358324559,1744935079793,-500.0,0.00081,120]
[358324560,1744935079802,-500.86,0.00081,120]
[358324561,1744935079812,-500.0,0.00081,120]
[358324562,1744935079821,-151.0,0.00081,120]
[358324563,1744935079906,-500.0,0.00081,120]
[358324564,1744935079922,-151.0,0.00081,120]
[358324565,1744935079932,-553.13,0.00081,120]
[358324566,1744935079942,-500.0,0.00081,120]
[358324567,1744935079952,-500.0,0.00081,120]
[358324568,1744935079961,-189.910739,0.00081,120]
[358324569,1744935079971,-151.0,0.00081,120]
[358324570,1744935079982,-151.0,0.00081,120]
[358324571,1744935079991,-500.0,0.00081,120]
[358324572,1744935080001,-500.0,0.00081,120]
[358324573,1744935080011,-500.0,0.00081,120]
[358324574,1744935080021,-532.099967,0.00081,120]
[358324575,1744935080030,-151.0,0.00081,120]
[358324576,1744935080039,-151.0,0.00081,120]
[358324577,1744935080049,-151.0,0.00081,120]
[358324578,1744935080059,-155.660916,0.00081,120]
[358324579,1744935080068,-151.0,0.00081,120]
[358324580,1744935080078,-151.0,0.00081,120]
[358324581,1744935080088,-151.0,0.00081,120]
[358324582,1744935080098,-820.01,0.00081,120]
[358324583,1744935080107,-151.0,0.00081,120]
[358324584,1744935080117,-151.0,0.00081,120]
[358324585,1744935080127,-165.7835,0.00081,120]
[358324586,1744935080137,-165.7835,0.00081,120]
[358324587,1744935080147,-243.875224,0.00081,110]
[358324588,1744935080157,-1263.049376,0.00081,120]
[358324589,1744935080166,-1263.049376,0.00081,120]
[358324590,1744935080175,-244.664616,0.00081,120]
[358324591,1744935080185,-783.95,0.00081047,120]
[358324592,1744935080195,-963.54,0.00081047,120]
[358324593,1744935080205,-35705.7487889,0.00081075,10]
[358324594,1744935080215,-32215.5752485,0.00081075,10]
[358324595,1744935080225,-28725.4017081,0.00081075,10]
[358324596,1744935080235,-25235.2281677,0.00081075,10]
[358324597,1744935080245,-21745.0546274,0.00081075,10]
[358324598,1744935080254,-18254.881087,0.00081075,10]
[358324599,1744935080264,-4028.2692228,0.00081131,10]
[358324600,1744935080273,-3280.6556209,0.00081131,10]
[358324601,1744935080283,-2533.042019,0.00081131,10]
[358324602,1744935080294,-1785.4284171,0.00081131,10]
[358324603,1744935080303,-1037.8148152,0.00081131,10]
[358324604,1744935080313,-290.2012133,0.00081131,10]
[358324605,1744935080322,-227.04,0.00081187,120]
[358324606,1744935080331,-163.98952574,0.00081243,66]
[358324607,1744935080341,-799.12004131,0.00081593,120]
[358324608,1744935080350,-995.79,0.000816,60]
[358324609,1744935080360,-163.98952574,0.00081686,66]
[358324610,1744935080369,-1000.0,0.000817,14]
[358324611,1744935080379,-500.0,0.00081731,120]
[358324612,1744935080389,-2301.57,0.00081731,120]
[358324613,1744935080399,-866.98,0.00081731,120]
[358324614,1744935080408,-1862.4,0.00081731,120]
[358324615,1744935080417,-559.98032351,0.00081731,120]
[358324616,1744935080427,-500.0,0.00081731,120]
[358324617,1744935080437,-500.0,0.00081731,120]
[358324618,1744935080447,-557.39,0.00081731,120]
[358324619,1744935080457,-500.0,0.00081731,120]
[358324620,1744935080466,-500.0,0.00081731,120]
[358324621,1744935080475,-500.0,0.00081731,120]
[358324622,1744935080484,-500.0,0.00081731,2]
[358324623,1744935080493,-460.91,0.00081731,120]
[358324624,1744935080502,-500.0,0.00081731,120]
[358324625,1744935080512,-500.0,0.00081731,120]
[358324626,1744935080525,-995.75,0.00081731,120]
[358324627,1744935080535,-247.79126776,0.00081731,120]
[358324628,1744935080545,-1197.0,0.00081731,120]
[358324629,1744935080554,-500.0,0.00081731,120]
[358324630,1744935080564,-532.05,0.00081731,120]
[358324631,1744935080574,-500.0,0.00081731,120]
[358324632,1744935080584,-500.0,0.00081731,120]
[358324633,1744935080594,-694.3,0.00081731,120]
[358324634,1744935080604,-500.0,0.00081731,30]
[358324635,1744935080615,-985.61,0.00081731,120]
[358324636,1744935080624,-1409.77,0.00081775,120]
[358324637,1744935080633,-792.01,0.00081775,120]
[358324638,1744935080643,-500.0,0.00081899,120]
[358324639,1744935080653,-500.0,0.00081899,120]
[358324640,1744935080663,-500.0,0.00081899,120]
[358324641,1744935080675,-500.0,0.00081899,120]
[358324642,1744935080685,-500.0,0.00081899,120]
[358324643,1744935080695,-548.57,0.00081899,120]
[358324644,1744935080705,-500.0,0.00081899,120]
[358324645,1744935080715,-500.0,0.00081899,120]
[358324646,1744935080725,-500.86,0.00081899,120]
[358324647,1744935080735,-500.0,0.00081899,120]
[358324648,1744935080745,-500.0,0.00081899,120]
[358324649,1744935080758,-553.13,0.00081899,120]
[358324650,1744935080768,-500.0,0.00081899,120]
[358324651,1744935080778,-500.0,0.00081899,120]
[358324652,1744935080788,-500.0,0.00081899,120]
[358324653,1744935080797,-500.0,0.00081899,120]
[358324654,1744935080807,-500.0,0.00081899,120]
[358324655,1744935080817,-5702.3016291,0.00081899,15]
[358324656,1744935080828,-820.01,0.00081899,120]
[358324657,1744935080839,-5908.57,0.00081899,7]
[358324658,1744935080850,-9695.6912742,0.00081899,15]
[358324659,1744935080860,-500.0,0.00081899,120]
[358324660,1744935080870,-594.85,0.00081899,120]
[358324661,1744935080880,-1013.07,0.00081899,120]
[358324662,1744935080894,-1172.86,0.00081899,120]
[358324663,1744935080905,-150.0,0.000819,120]
[358324664,1744935080914,-1297.0,0.000819,112]
[358324665,1744935080924,-150.0,0.000819,120]
[358324666,1744935080934,-300.0,0.000819,29]
[358324667,1744935080945,-382.84125718,0.000819,2]
[358324668,1744935080955,-796.8292371,0.000819,2]
[358324669,1744935080964,-13833.8444447,0.000819,2]
[358324670,1744935080974,-500.0,0.00081942,120]
[358324671,1744935080983,-500.0,0.00081942,120]
[358324672,1744935080993,-1195.93,0.00081942,8]
[358324673,1744935081003,-150.0,0.00081973,15]
[358324674,1744935081013,-500.0,0.00081998,120]
[358324675,1744935081022,-2301.57,0.00081998,120]
[358324676,1744935081033,-866.98,0.00081998,120]
[358324677,1744935081042,-1862.4,0.00081998,120]
[358324678,1744935081052,-500.0,0.00081998,120]
[358324679,1744935081062,-500.0,0.00081998,120]
[358324680,1744935081072,-557.39,0.00081998,120]
[358324681,1744935081082,-500.0,0.00081998,120]
[358324682,1744935081091,-500.0,0.00081998,120]
[358324683,1744935081101,-500.0,0.00081998,120]
[358324684,1744935081110,-1409.77,0.00081998,120]
[358324685,1744935081119,-792.01,0.00081998,120]
[358324686,1744935081129,-500.0,0.00081998,2]
[358324687,1744935081141,-252.98432,0.00081998,120]
[358324688,1744935081151,-500.0,0.00081998,120]
[358324689,1744935081161,-500.0,0.00081998,120]
[358324690,1744935081171,-5908.57,0.00081998,7]
[358324691,1744935081181,-995.75,0.00081998,120]
[358324692,1744935081190,-1197.0,0.00081998,120]
[358324693,1744935081200,-277.27,0.00081998,120]
[358324694,1744935081209,-532.05,0.00081998,120]
[358324695,1744935081219,-500.0,0.00081998,120]
[358324696,1744935081230,-594.85,0.00081998,120]
[358324697,1744935081239,-500.0,0.00081998,120]
[358324698,1744935081248,-500.0,0.00081998,120]
[358324699,1744935081258,-310.15,0.00081998,120]
[358324700,1744935081267,-500.0,0.00081998,120]
[358324701,1744935081277,-369.82,0.00081998,120]
[358324702,1744935081287,-783.95,0.00081998,120]
[358324703,1744935081296,-783.95,0.00081998,120]
[358324704,1744935081307,-694.3,0.00081998,120]
[358324705,1744935081316,-1195.93,0.00081998,8]
[358324706,1744935081325,-1195.93,0.00081998,8]
[358324707,1744935081336,-1195.93,0.00081998,8]
[358324708,1744935081346,-1195.93,0.00081998,8]
[358324709,1744935081355,-1196.02722985,0.00081998,8]
[358324710,1744935081365,-1013.07,0.00081998,120]
[358324711,1744935081375,-500.0,0.00081998,30]
[358324712,1744935081469,-1172.86,0.00081998,120]
[358324713,1744935081479,-963.54,0.00081998,120]
[358324714,1744935081489,-963.54,0.00081998,120]
[358324715,1744935081498,-985.61,0.00081998,120]
[358324716,1744935081507,-300.0,0.00081999,60]
[358324717,1744935081516,-300.0,0.00081999,60]
[358324718,1744935081525,-500.0,0.00081999,120]
[358324719,1744935081535,-500.0,0.00081999,120]
[358324720,1744935081544,-500.0,0.00081999,120]
[358324721,1744935081553,-500.0,0.00081999,120]
[358324722,1744935081563,-500.0,0.00081999,120]
[358324723,1744935081572,-500.0,0.00081999,120]
[358324724,1744935081582,-500.0,0.00081999,120]
[358324725,1744935081592,-500.0,0.00081999,120]
[358324726,1744935081603,-500.0,0.00081999,120]
[358324727,1744935081612,-500.0,0.00081999,120]
[358324728,1744935081621,-500.0,0.00081999,120]
[358324729,1744935081631,-300.0,0.00081999,60]
[358324730,1744935081643,-500.0,0.00081999,120]
[358324731,1744935081653,-500.0,0.00081999,120]
[358324732,1744935081664,-500.0,0.00081999,120]
[358324733,1744935081678,-500.0,0.00081999,120]
[358324734,1744935081688,-500.0,0.00081999,120]
[358324735,1744935081697,-500.0,0.00081999,120]
[358324736,1744935081707,-500.0,0.00081999,120]
[358324737,1744935081718,-500.0,0.00081999,120]
[358324738,1744935081728,-500.0,0.00081999,120]
[358324739,1744935081737,-500.0,0.00081999,120]
[358324740,1744935081747,-500.0,0.00081999,120]
[358324741,1744935081757,-500.0,0.00081999,120]
[358324742,1744935081767,-500.0,0.00081999,120]
[358324743,1744935081776,-500.0,0.00081999,120]
[358324744,1744935081787,-500.0,0.00081999,120]
[358324745,1744935081796,-500.0,0.00081999,120]
[358324746,1744935081805,-500.0,0.00081999,120]
[358324747,1744935081815,-500.0,0.00081999,120]
[358324748,1744935081825,-500.0,0.00081999,120]
[358324749,1744935081834,-500.0,0.00081999,120]
[358324750,1744935081846,-500.0,0.00081999,120]
[358324751,1744935081856,-500.0,0.00081999,120]
[358324752,1744935081866,-500.0,0.00081999,120]
[358324753,1744935081876,-500.0,0.00081999,120]
[358324754,1744935081887,-500.0,0.00081999,120]
[358324755,1744935081896,-300.0,0.00081999,60]
[358324756,1744935081905,-500.0,0.00081999,120]
[358324757,1744935081915,-500.0,0.00081999,120]
[358324758,1744935081924,-500.0,0.00081999,120]
[358324759,1744935081934,-500.0,0.00081999,120]
[358324760,1744935081943,-500.0,0.00081999,120]
[358324761,1744935081952,-500.0,0.00081999,120]
[358324762,1744935081962,-500.0,0.00081999,120]
[358324763,1744935081971,-500.0,0.00081999,120]
[358324764,1744935081980,-500.0,0.00081999,120]
[358324765,1744935081990,-300.0,0.00081999,60]
[358324766,1744935081999,-548.57,0.00081999,120]
[358324767,1744935082008,-548.57,0.00081999,120]
[358324768,1744935082018,-548.57,0.00081999,120]
[358324769,1744935082027,-548.57,0.00081999,120]
[358324770,1744935082036,-548.57,0.00081999,120]
[358324771,1744935082047,-548.57,0.00081999,120]
[358324772,1744935082056,-548.57,0.00081999,120]
[358324773,1744935082066,-548.57,0.00081999,120]
[358324774,1744935082076,-548.57,0.00081999,120]
[358324775,1744935082086,-500.0,0.00081999,120]
[358324776,1744935082097,-500.0,0.00081999,120]
[358324777,1744935082107,-500.0,0.00081999,120]
[358324778,1744935082115,-500.0,0.00081999,120]
[358324779,1744935082126,-500.0,0.00081999,120]
[358324780,1744935082137,-500.0,0.00081999,120]
[358324781,1744935082147,-420.64920841,0.00081999,120]
[358324782,1744935082156,-500.0,0.00081999,120]
[358324783,1744935082166,-500.0,0.00081999,120]
[358324784,1744935082176,-500.0,0.00081999,120]
[358324785,1744935082186,-386.71264585,0.00081999,120]
[358324786,1744935082195,-500.86,0.00081999,120]
[358324787,1744935082205,-500.86,0.00081999,120]
[358324788,1744935082214,-500.86,0.00081999,120]
[358324789,1744935082224,-500.86,0.00081999,120]
[358324790,1744935082234,-500.86,0.00081999,120]
[358324791,1744935082244,-500.86,0.00081999,120]
[358324792,1744935082255,-500.86,0.00081999,120]
[358324793,1744935082265,-500.86,0.00081999,120]
[358324794,1744935082274,-500.86,0.00081999,120]
[358324795,1744935082284,-500.86,0.00081999,120]
[358324796,1744935082294,-500.91294312,0.00081999,120]
[358324797,1744935082304,-500.0,0.00081999,120]
[358324798,1744935082315,-500.0,0.00081999,120]
[358324799,1744935082326,-500.0,0.00081999,120]
[358324800,1744935082337,-500.0,0.00081999,120]
[358324801,1744935082347,-500.0,0.00081999,120]
[358324802,1744935082358,-500.0,0.00081999,120]
[358324803,1744935082368,-500.0,0.00081999,120]
[358324804,1744935082378,-500.0,0.00081999,120]
[358324805,1744935082390,-500.0,0.00081999,120]
[358324806,1744935082401,-524.91,0.00081999,120]
[358324807,1744935082411,-355.3,0.00081999,120]
[358324808,1744935082423,-151.0,0.00081999,120]
[358324809,1744935082433,-500.0,0.00081999,120]
[358324810,1744935082443,-500.0,0.00081999,120]
[358324811,1744935082453,-500.0,0.00081999,120]
[358324812,1744935082462,-500.0,0.00081999,120]
[358324813,1744935082472,-500.0,0.00081999,120]
[358324814,1744935082482,-500.0,0.00081999,120]
[358324815,1744935082493,-500.0,0.00081999,120]
[358324816,1744935082503,-631.6221684,0.00081999,120]
[358324817,1744935082513,-151.0,0.00081999,120]
[358324818,1744935082522,-2301.57,0.00081999,120]
[358324819,1744935082532,-2301.57,0.00081999,120]
[358324820,1744935082542,-2301.57,0.00081999,120]
[358324821,1744935082552,-553.13,0.00081999,120]
[358324822,1744935082561,-2301.57,0.00081999,120]
[358324823,1744935082571,-2301.57,0.00081999,120]
[358324824,1744935082582,-553.13,0.00081999,120]
[358324825,1744935082593,-2301.57,0.00081999,120]
[358324826,1744935082606,-553.13,0.00081999,120]
[358324827,1744935082617,-2301.57,0.00081999,120]
[358324828,1744935082629,-553.13,0.00081999,120]
[358324829,1744935082642,-2301.74586968,0.00081999,120]
[358324830,1744935082654,-553.13,0.00081999,120]
[358324831,1744935082664,-553.13,0.00081999,120]
[358324832,1744935082677,-553.13,0.00081999,120]
[358324833,1744935082690,-553.13,0.00081999,120]
[358324834,1744935082701,-553.13,0.00081999,120]
[358324835,1744935082711,-553.13,0.00081999,120]
[358324836,1744935082722,-553.14366907,0.00081999,120]
[358324837,1744935082731,-500.0,0.00081999,120]
[358324838,1744935082741,-500.0,0.00081999,120]
[358324839,1744935082751,-500.0,0.00081999,120]
[358324840,1744935082763,-500.0,0.00081999,120]
[358324841,1744935082773,-500.0,0.00081999,120]
[358324842,1744935082783,-621.62910003,0.00081999,120]
[358324843,1744935082792,-500.0,0.00081999,120]
[358324844,1744935082804,-500.0,0.00081999,120]
[358324845,1744935082814,-500.0,0.00081999,120]
[358324846,1744935082824,-866.98,0.00081999,120]
[358324847,1744935082834,-866.98,0.00081999,120]
[358324848,1744935082844,-866.98,0.00081999,120]
[358324849,1744935082856,-866.98,0.00081999,120]
[358324850,1744935082947,-866.98,0.00081999,120]
[358324851,1744935082957,-866.98,0.00081999,120]
[358324852,1744935082966,-866.98,0.00081999,120]
[358324853,1744935082976,-867.02,0.00081999,120]
[358324854,1744935082985,-1862.4,0.00081999,120]
[358324855,1744935082995,-1862.4,0.00081999,120]
[358324856,1744935083005,-1862.4,0.00081999,120]
[358324857,1744935083015,-1862.4,0.00081999,120]
[358324858,1744935083024,-1862.4,0.00081999,120]
[358324859,1744935083034,-1862.4,0.00081999,120]
[358324860,1744935083043,-1862.4,0.00081999,120]
[358324861,1744935083053,-1862.49,0.00081999,120]
[358324862,1744935083064,-344.59946219,0.00081999,120]
[358324863,1744935083074,-500.0,0.00081999,120]
[358324864,1744935083085,-500.0,0.00081999,120]
[358324865,1744935083095,-500.0,0.00081999,120]
[358324866,1744935083105,-500.0,0.00081999,120]
[358324867,1744935083116,-229.71455173,0.00081999,120]
[358324868,1744935083126,-198.99,0.00081999,120]
[358324869,1744935083137,-557.39,0.00081999,120]
[358324870,1744935083148,-557.39,0.00081999,120]
[358324871,1744935083159,-557.39,0.00081999,120]
[358324872,1744935083170,-557.39,0.00081999,120]
[358324873,1744935083182,-557.39,0.00081999,120]
[358324874,1744935083192,-557.39,0.00081999,120]
[358324875,1744935083203,-557.39,0.00081999,120]
[358324876,1744935083213,-557.44200002,0.00081999,120]
[358324877,1744935083223,-500.0,0.00081999,120]
[358324878,1744935083233,-500.0,0.00081999,120]
[358324879,1744935083243,-500.0,0.00081999,120]
[358324880,1744935083253,-500.0,0.00081999,120]
[358324881,1744935083262,-500.0,0.00081999,120]
[358324882,1744935083272,-500.0,0.00081999,120]
[358324883,1744935083283,-500.0,0.00081999,120]
[358324884,1744935083292,-308.33976058,0.00081999,120]
[358324885,1744935083304,-500.0,0.00081999,120]
[358324886,1744935083313,-455.17737404,0.00081999,120]
[358324887,1744935083323,-305.66198743,0.00081999,120]
[358324888,1744935083332,-500.0,0.00081999,120]
[358324889,1744935083342,-500.0,0.00081999,120]
[358324890,1744935083351,-500.0,0.00081999,120]
[358324891,1744935083361,-500.0,0.00081999,120]
[358324892,1744935083411,-500.0,0.00081999,120]
[358324893,1744935083420,-500.0,0.00081999,120]
[358324894,1744935083429,-500.0,0.00081999,120]
[358324895,1744935083439,-471.20960065,0.00081999,120]
[358324896,1744935083448,-500.0,0.00081999,120]
[358324897,1744935083459,-500.0,0.00081999,120]
[358324898,1744935083469,-500.0,0.00081999,120]
[358324899,1744935083478,-500.0,0.00081999,120]
[358324900,1744935083487,-500.0,0.00081999,120]
[358324901,1744935083497,-500.0,0.00081999,120]
[358324902,1744935083506,-193.21,0.00081999,120]
[358324903,1744935083515,-1409.77,0.00081999,120]
[358324904,1744935083524,-1409.77,0.00081999,120]
[358324905,1744935083533,-1409.77,0.00081999,120]
[358324906,1744935083542,-1409.77,0.00081999,120]
[358324907,1744935083551,-1409.77,0.00081999,120]
[358324908,1744935083561,-1409.77,0.00081999,120]
[358324909,1744935083570,-1409.77,0.00081999,120]
[358324910,1744935083579,-1409.77,0.00081999,120]
[358324911,1744935083588,-792.01,0.00081999,120]
[358324912,1744935083603,-792.01,0.00081999,120]
[358324913,1744935083623,-792.01,0.00081999,120]
[358324914,1744935083642,-792.01,0.00081999,120]
[358324915,1744935083662,-792.01,0.00081999,120]
[358324916,1744935083681,-792.01,0.00081999,120]
[358324917,1744935083700,-792.01,0.00081999,120]
[358324918,1744935083718,-792.01,0.00081999,120]
[358324919,1744935083739,-205.27970944,0.00081999,2]
[358324920,1744935083759,-820.01,0.00081999,120]
[358324921,1744935083777,-820.01,0.00081999,120]
[358324922,1744935083797,-820.01,0.00081999,120]
[358324923,1744935083814,-820.01,0.00081999,120]
[358324924,1744935083834,-820.01,0.00081999,120]
[358324925,1744935083848,-820.01,0.00081999,120]
[358324926,1744935083865,-820.01,0.00081999,120]
[358324927,1744935083882,-820.01,0.00081999,120]
[358324928,1744935083899,-820.01,0.00081999,120]
[358324929,1744935083914,-820.01,0.00081999,120]
[358324930,1744935083929,-820.13828302,0.00081999,120]
[358324931,1744935083944,-192.54971745,0.00081999,120]
[358324932,1744935083962,-500.0,0.00081999,120]
[358324933,1744935083978,-500.0,0.00081999,120]
[358324934,1744935083994,-500.0,0.00081999,120]
[358324935,1744935084010,-500.0,0.00081999,120]
[358324936,1744935084024,-500.0,0.00081999,120]
[358324937,1744935084039,-500.0,0.00081999,120]
[358324938,1744935084053,-478.4072,0.00081999,120]
[358324939,1744935084067,-5908.57,0.00081999,7]
[358324940,1744935084081,-5908.57,0.00081999,7]
[358324941,1744935084094,-5908.57,0.00081999,7]
[358324942,1744935084108,-5908.57,0.00081999,7]
[358324943,1744935084123,-5908.57,0.00081999,7]
[358324944,1744935084139,-5908.57,0.00081999,7]
[358324945,1744935084152,-5908.71353361,0.00081999,7]
[358324946,1744935084167,-995.75,0.00081999,120]
[358324947,1744935084182,-995.75,0.00081999,120]
[358324948,1744935084197,-995.75,0.00081999,120]
[358324949,1744935084211,-995.75,0.00081999,120]
[358324950,1744935084226,-995.75,0.00081999,120]
[358324951,1744935084241,-995.75,0.00081999,120]
[358324952,1744935084256,-995.75,0.00081999,120]
[358324953,1744935084270,-995.75694541,0.00081999,120]
[358324954,1744935084284,-1197.0,0.00081999,120]
[358324955,1744935084300,-1197.0,0.00081999,120]
[358324956,1744935084315,-1197.0,0.00081999,120]
[358324957,1744935084332,-1197.0,0.00081999,120]
[358324958,1744935084347,-1197.0,0.00081999,120]
[358324959,1744935084362,-1197.0,0.00081999,120]
[358324960,1744935084376,-1197.0,0.00081999,120]
[358324961,1744935084391,-1197.15562037,0.00081999,120]
[358324962,1744935084405,-532.05,0.00081999,120]
[358324963,1744935084418,-532.05,0.00081999,120]
[358324964,1744935084432,-532.05,0.00081999,120]
[358324965,1744935084446,-532.05,0.00081999,120]
[358324966,1744935084460,-532.05,0.00081999,120]
[358324967,1744935084473,-532.05,0.00081999,120]
[358324968,1744935084487,-532.05,0.00081999,120]
[358324969,1744935084501,-532.16851235,0.00081999,120]
[358324970,1744935084517,-500.0,0.00081999,120]
[358324971,1744935084532,-333.71398387,0.00081999,120]
[358324972,1744935084547,-594.85,0.00081999,120]
[358324973,1744935084561,-594.85,0.00081999,120]
[358324974,1744935084575,-594.85,0.00081999,120]
[358324975,1744935084589,-594.85,0.00081999,120]
[358324976,1744935084727,-594.85,0.00081999,120]
[358324977,1744935084737,-500.0,0.00081999,120]
[358324978,1744935084746,-500.0,0.00081999,120]
[358324979,1744935084757,-594.85,0.00081999,120]
[358324980,1744935084767,-500.0,0.00081999,120]
[358324981,1744935084777,-595.05758035,0.00081999,120]
[358324982,1744935084787,-500.0,0.00081999,120]
[358324983,1744935084797,-500.0,0.00081999,120]
[358324984,1744935084807,-783.95,0.00081999,120]
[358324985,1744935084816,-783.95,0.00081999,120]
[358324986,1744935084827,-783.95,0.00081999,120]
[358324987,1744935084837,-783.95,0.00081999,120]
[358324988,1744935084847,-783.98,0.00081999,120]
[358324989,1744935084857,-694.3,0.00081999,120]
[358324990,1744935084868,-694.3,0.00081999,120]
[358324991,1744935084878,-694.3,0.00081999,120]
[358324992,1744935084888,-694.3,0.00081999,120]
[358324993,1744935084898,-694.3,0.00081999,120]
[358324994,1744935084908,-694.3,0.00081999,120]
[358324995,1744935084918,-694.3,0.00081999,120]
[358324996,1744935084927,-694.49,0.00081999,120]
[358324997,1744935084937,-1013.07,0.00081999,120]
[358324998,1744935084946,-1013.07,0.00081999,120]
[358324999,1744935084955,-1013.07,0.00081999,120]
[358325000,1744935084965,-1013.07,0.00081999,120]
[358325001,1744935084974,-1013.07,0.00081999,120]
[358325002,1744935084984,-1013.07,0.00081999,120]
[358325003,1744935084993,-1013.28132333,0.00081999,120]
[358325004,1744935085003,-500.0,0.00081999,30]
[358325005,1744935085012,-500.0,0.00081999,30]
[358325006,1744935085022,-175.9675182,0.00081999,30]
[358325007,1744935085032,-1172.86,0.00081999,120]
[358325008,1744935085042,-1172.86,0.00081999,120]
[358325009,1744935085052,-1172.86,0.00081999,120]
[358325010,1744935085062,-1172.86,0.00081999,120]
[358325011,1744935085071,-1172.86,0.00081999,120]
[358325012,1744935085081,-1172.86,0.00081999,120]
[358325013,1744935085091,-1172.95494707,0.00081999,120]
[358325014,1744935085101,-963.54,0.00081999,120]
[358325015,1744935085111,-963.54,0.00081999,120]
[358325016,1744935085122,-963.54,0.00081999,120]
[358325017,1744935085132,-963.54,0.00081999,120]
[358325018,1744935085146,-963.59758891,0.00081999,120]
[358325019,1744935085156,-985.61,0.00081999,120]
[358325020,1744935085166,-985.61,0.00081999,120]
[358325021,1744935085176,-985.61,0.00081999,120]
[358325022,1744935085185,-985.61,0.00081999,120]
[358325023,1744935085195,-985.61,0.00081999,120]
[358325024,1744935085205,-985.61,0.00081999,120]
[358325025,1744935085215,-985.61,0.00081999,120]
[358325026,1744935085238,-985.63814838,0.00081999,120]
[358325027,1744935085248,-50000.0,0.00082,82]
[358325028,1744935085257,-1000000.0,0.00082,120]
[358325029,1744935085267,-1000000.0,0.00082,120]
[358325030,1744935085276,-194.194334,0.00082,120]
[358325031,1744935085287,-151.0,0.00082,120]
[358325032,1744935085297,-153.326205,0.00082,120]
[358325033,1744935085307,-151.0,0.00082,120]
[358325034,1744935085316,-151.0,0.00082,120]
[358325035,1744935085326,-151.0,0.00082,120]
[358325036,1744935085335,-218.147334,0.00082,120]
[358325037,1744935085344,-151.0,0.00082,120]
[358325038,1744935085354,-191.832,0.00082,120]
[358325039,1744935085364,-151.0,0.00082,120]
[358325040,1744935085373,-151.0,0.00082,120]
[358325041,1744935085383,-151.0,0.00082,120]
[358325042,1744935085392,-151.0,0.00082,120]
[358325043,1744935085402,-151.0,0.00082,120]
[358325044,1744935085411,-151.0,0.00082,120]
[358325045,1744935085421,-151.0,0.00082,120]
[358325046,1744935085430,-151.0,0.00082,120]
[358325047,1744935085440,-164.668897,0.00082,120]
[358325048,1744935085449,-532.099967,0.00082,120]
[358325049,1744935085459,-532.099967,0.00082,120]
[358325050,1744935085468,-532.099967,0.00082,120]
[358325051,1744935085478,-532.099967,0.00082,120]
[358325052,1744935085487,-151.0,0.00082,120]